bitfinex-derivatives/quotes_SOLF0:USTF0_20250803
["timestamp","ask_amount","ask_price","bid_price","bid_amount"]
[1754228950211,6.2144,160.92,160.89,8.64581488]
[1754228950411,3.36,160.91,160.89,8.64581488]
[1754228950913,3.36,160.9,160.89,8.64581488]
[1754228951115,3.36,160.91,160.9,3.41]
[1754228951519,3.36,160.91,160.89,8.64581488]
[1754228951721,9.5748,160.91,160.89,5.23581488]
[1754228952019,3.36,160.9,160.89,5.23581488]
[1754228952422,9.5751,160.9,160.89,5.23581488]
[1754228956015,3.39,160.87,160.82,3.48]
[1754228956215,3.39,160.85,160.83,3.48]
[1754228956716,3.39,160.85,160.83,9.6978]
[1754228956922,3.39,160.89,160.84,3.48]
[1754228957226,6.28530531,160.9,160.81,3.48]
[1754228957424,6.216,160.88,160.83,6.2176]
[1754228957722,3.39,160.87,160.85,3.48]
[1754228958114,3.39,160.86,160.85,3.48]
[1754228961919,3.39,160.86,160.8,6.28530531]
[1754228962120,3.39,160.86,160.81,3.48]
[1754228962320,3.39,160.89,160.81,3.48]
[1754228962625,6.2169,160.86,160.81,6.2183]
[1754228962827,3.39,160.84,160.82,3.48]
[1754228963018,3.39,160.84,160.81,6.2185]
[1754228963221,3.39,160.83,160.82,3.48]
[1754228963421,3.39,160.87,160.82,3.48]
[1754228963623,6.2156,160.89,160.84,6.2171]
[1754228963816,3.39,160.91,160.85,3.48]
[1754228964226,3.39,160.88,160.85,3.48]
[1754228964426,3.39,160.87,160.85,3.48]
[1754228965335,3.39,160.87,160.86,3.48]
[1754228969638,3.39,160.9,160.86,6.2166]
[1754228969940,3.39,160.89,160.87,3.48]
[1754228970626,3.39,160.91,160.87,3.48]
[1754228971422,3.39,160.89,160.87,3.48]
[1754228971836,3.39,160.89,160.85,6.2168]
[1754228972035,3.39,160.89,160.86,3.48]
[1754228972228,9.6055,160.89,160.86,3.48]
[1754228972428,3.39,160.88,160.86,3.48]
[1754228972829,3.39,160.87,160.86,3.48]
[1754228976135,6.2154,160.9,160.86,3.48]
[1754228976333,3.39,160.88,160.86,3.48]
[1754228977339,3.39,160.88,160.87,3.48]
[1754228981938,3.39,160.88,160.86,3.48]
[1754228982635,6.2159,160.88,160.86,3.48]
[1754228982835,3.39,160.87,160.86,3.48]
[1754228983039,3.39,160.87,160.81,3.48]
[1754228983239,3.39,160.86,160.83,3.48]
[1754228984948,3.39,160.86,160.83,3.38]
[1754228985540,6.2167,160.86,160.83,3.38]
[1754228985745,3.36,160.85,160.83,3.38]
[1754228986140,3.36,160.85,160.8,6.2187]
[1754228986141,3.36,160.84,160.8,6.2187]
[1754228986341,3.36,160.84,160.81,3.38]
[1754228986738,3.36,160.84,160.81,9.5986]
[1754228986939,3.36,160.84,160.82,3.38]
[1754228988645,3.36,160.83,160.79,3.38]
[1754228989236,3.36,160.83,160.79,9.5991]
[1754228989470,3.36,160.83,160.79,6.2191]
[1754228989746,3.36,160.83,160.81,3.38]
[1754228990148,6.2179,160.83,160.79,6.2191]
[1754228990343,3.36,160.82,160.8,3.38]
[1754228990846,3.36,160.81,160.79,3.38]
[1754228991146,3.36,160.81,160.77,3.38]
[1754228991340,3.36,160.8,160.75,3.38]
[1754228991540,3.36,160.8,160.77,3.38]
[1754228991834,3.36,160.8,160.74,3.38]
[1754228992039,3.36,160.8,160.77,6.22]
[1754228992240,3.36,160.81,160.74,3.38]
[1754228992441,6.2192,160.8,160.74,3.38]
[1754228992640,3.36,160.79,160.76,3.38]
[1754228992836,6.2192,160.8,160.76,3.38]
[1754228993038,3.36,160.78,160.76,3.38]
[1754228993244,3.36,160.81,160.74,3.38]
[1754228993840,3.36,160.8,160.77,3.38]
[1754228994038,3.36,160.83,160.75,3.38]
[1754228994543,3.36,160.81,160.77,6.2197]
[1754228994740,3.36,160.81,160.79,3.38]
[1754228997147,9.5787,160.81,160.79,3.38]
[1754228997347,3.36,160.8,160.79,3.38]
[1754229000144,3.36,160.83,160.79,3.38]
[1754229000356,3.36,160.82,160.79,3.38]
[1754229000548,6.28530531,160.84,160.79,3.38]
[1754229000744,3.36,160.83,160.79,3.38]
[1754229000950,3.36,160.81,160.77,3.38]
[1754229001145,3.36,160.81,160.76,3.38]
[1754229001362,3.36,160.79,160.77,3.38]
[1754229001653,3.36,160.79,160.76,9.6002]
[1754229001851,3.36,160.78,160.72,6.28530531]
[1754229002047,3.36,160.78,160.73,3.38]
[1754229002646,3.36,160.79,160.76,6.2204]
[1754229002956,3.36,160.78,160.72,6.28530531]
[1754229003350,3.36,160.78,160.73,3.38]
[1754229004156,6.2187,160.81,160.77,6.2201]
[1754229004355,3.36,160.79,160.78,3.38]
[1754229005563,3.36,160.81,160.79,3.38]
[1754229005957,3.36,160.81,160.79,9.5993]
[1754229006256,3.36,160.81,160.8,3.38]
[1754229006464,3.36,160.81,160.79,6.2193]
[1754229006764,3.36,160.81,160.79,9.5993]
[1754229007654,3.36,160.83,160.79,6.2193]
[1754229007857,3.36,160.83,160.8,3.38]
[1754229008561,3.36,160.82,160.8,6.2189]
[1754229008759,3.36,160.83,160.8,6.2189]
[1754229008958,3.36,160.83,160.76,6.28530531]
[1754229009265,3.36,160.82,160.79,6.2193]
[1754229009470,3.36,160.82,160.8,3.38]
[1754229012662,3.36,160.82,160.8,9.5989]
[1754229012865,3.36,160.82,160.8,6.2189]
[1754229013165,27.77158063,160.86,160.81,3.38]
[1754229013363,6.2175,160.84,160.81,3.38]
[1754229013559,3.36,160.83,160.81,3.38]
[1754229013762,3.43,160.85,160.79,3.5]
[1754229013960,3.43,160.85,160.81,6.2183]
[1754229014163,3.43,160.85,160.81,9.7183]
[1754229014763,9.6473,160.85,160.81,9.7183]
[1754229015068,3.43,160.84,160.79,3.5]
[1754229015966,3.43,160.83,160.81,3.5]
[1754229016268,3.43,160.83,160.8,3.5]
[1754229016662,9.6481,160.83,160.8,3.5]
[1754229016857,3.43,160.82,160.8,3.5]
[1754229017264,9.6485,160.82,160.78,9.7195]
[1754229017463,6.28530531,160.85,160.78,9.7195]
[1754229017464,3.43,160.81,160.78,9.7195]
[1754229018071,3.43,160.81,160.78,3.5]
[1754229018269,3.43,160.81,160.75,3.5]
[1754229018770,6.2193,160.8,160.76,6.2202]
[1754229018970,3.43,160.79,160.77,3.5]
[1754229019673,6.2194,160.79,160.77,3.5]
[1754229019968,3.43,160.78,160.76,9.7202]
[1754229020272,3.43,160.78,160.76,3.5]
[1754229020469,3.43,160.78,160.75,6.2209]
[1754229020770,3.43,160.8,160.73,3.5]
[1754229020970,3.43,160.8,160.75,6.2209]
[1754229021273,3.43,160.79,160.77,3.5]
[1754229022271,9.6494,160.79,160.77,3.5]
[1754229022473,3.43,160.78,160.77,3.5]
[1754229022673,3.43,160.78,160.75,9.7209]
[1754229022873,3.43,160.8,160.73,6.28530531]
[1754229023174,3.43,160.8,160.74,3.5]
[1754229023874,3.43,160.79,160.78,3.5]
[1754229024275,3.43,160.79,160.73,6.28530531]
[1754229024773,3.43,160.79,160.77,3.5]
[1754229026177,6.2195,160.79,160.77,3.5]
[1754229026376,3.43,160.78,160.77,3.5]
[1754229026673,6.28530531,160.83,160.77,3.5]
[1754229026873,3.43,160.8,160.77,3.5]
[1754229027378,3.43,160.79,160.78,3.5]
[1754229027877,3.43,160.81,160.78,9.7197]
[1754229028066,3.43,160.8,160.79,3.5]
[1754229029681,3.43,160.8,160.78,3.5]
[1754229030380,3.43,160.8,160.77,9.72]
[1754229031282,6.219,160.8,160.77,9.72]
[1754229031575,3.43,160.79,160.77,9.72]
[1754229032378,3.43,160.79,160.77,6.22]
[1754229032979,3.43,160.79,160.76,3.5]
[1754229033181,3.43,160.79,160.77,3.5]
[1754229033385,9.6494,160.79,160.77,3.5]
[1754229033586,3.43,160.79,160.77,3.5]
[1754229035288,3.43,160.82,160.75,9.7208]
[1754229035479,4.44964361,160.81,160.75,9.7208]
[1754229035686,3.43,160.79,160.76,3.5]
[1754229035987,3.43,160.76,160.75,3.5]
[1754229036580,3.43,160.76,160.73,5.22047327]
[1754229036780,3.43,160.8,160.74,9.721]
[1754229036986,3.43,160.78,160.75,3.5]
[1754229037185,3.43,160.76,160.75,3.5]
[1754229038478,9.6505,160.76,160.73,5.22047327]
[1754229038684,3.43,160.75,160.72,8.72047327]
[1754229039086,3.43,160.73,160.72,8.72047327]
[1754229040085,3.43,160.73,160.72,5.22047327]
[1754229040485,3.43,160.73,160.71,5.22047327]
[1754229040689,6.2217,160.73,160.71,3.5]
[1754229040888,3.43,160.72,160.71,3.5]
[1754229041390,3.43,160.76,160.71,5.22047327]
[1754229041691,3.43,160.76,160.72,3.5]
[1754229041885,6.2212,160.75,160.72,3.5]
[1754229042192,3.43,160.74,160.7,8.72047327]
[1754229042595,3.43,160.73,160.7,11.44327327]
[1754229042793,3.43,160.73,160.71,3.5]
[1754229043191,6.2218,160.73,160.7,5.22047327]
[1754229043386,6.28530531,160.75,160.7,5.22047327]
[1754229043387,3.43,160.72,160.7,5.22047327]
[1754229043895,3.43,160.72,160.7,14.83327327]
[1754229044793,6.28530531,160.75,160.71,3.39]
[1754229045098,6.2213,160.74,160.71,3.39]
[1754229045395,3.25,160.72,160.66,6.95220232]
[1754229045585,113.82,160.77,160.63,3.39]
[1754229045586,6.28530531,160.67,160.63,3.39]
[1754229045897,6.28530531,160.7,160.62,3.39]
[1754229046086,3.25,160.69,160.62,3.39]
[1754229046288,3.25,160.66,160.63,6.2253]
[1754229046591,3.25,160.65,160.64,3.39]
[1754229046795,3.25,160.65,160.64,9.6152]
[1754229047400,3.25,160.65,160.64,3.39]
[1754229048189,3.25,160.65,160.57,6.28530531]
[1754229048394,3.25,160.71,160.63,6.28530531]
[1754229048594,3.25,160.71,160.64,3.39]
[1754229048795,6.28530531,160.76,160.68,3.39]
[1754229048997,3.25,160.75,160.68,3.39]
[1754229049197,6.2213,160.74,160.68,3.39]
[1754229049496,3.25,160.74,160.68,3.39]
[1754229049901,3.25,160.72,160.69,3.39]
[1754229050300,12.50670531,160.74,160.69,6.2232]
[1754229050496,3.25,160.73,160.7,3.39]
[1754229050699,9.53530531,160.76,160.7,3.39]
[1754229051100,15.75610531,160.76,160.7,6.2225]
[1754229051397,3.25,160.74,160.71,3.39]
[1754229051592,9.4702,160.77,160.69,6.28530531]
[1754229051793,3.25,160.76,160.72,3.39]
[1754229052397,9.53530531,160.78,160.72,3.39]
[1754229052593,3.25,160.78,160.72,3.39]
[1754229052998,3.25,160.78,160.75,3.39]
[1754229055100,3.25,160.79,160.75,3.39]
[1754229055304,9.53530531,160.8,160.75,3.39]
[1754229055499,3.25,160.79,160.75,3.39]
[1754229057907,9.4687,160.81,160.76,3.39]
[1754229058409,417.96,160.84,160.77,3.39]
[1754229058611,3.25,160.83,160.77,3.39]
[1754229058808,9.4681,160.83,160.77,9.6101]
[1754229059009,9.4681,160.83,160.78,3.39]
[1754229059310,3.25,160.82,160.78,3.39]
[1754229059512,9.4683,160.82,160.78,3.39]
[1754229059814,3.25,160.82,160.78,3.39]
[1754229061312,3.25,160.82,160.78,9.6097]
[1754229061512,135.86627532,160.86,160.79,3.39]
[1754229061513,3.25,160.85,160.79,3.39]
[1754229062316,3.25,160.85,160.81,3.39]
[1754229062611,3.25,160.85,160.82,3.39]
[1754229064720,3.25,160.84,160.83,3.39]
[1754229065823,3.25,160.86,160.8,3.39]
[1754229066326,3.25,160.86,160.81,6.2182]
[1754229066523,3.25,160.85,160.83,3.39]
[1754229066822,3.25,160.84,160.83,3.39]
[1754229067322,3.25,160.85,160.83,3.39]
[1754229068226,3.25,160.85,160.81,6.2185]
[1754229068426,3.25,160.85,160.84,3.39]
[1754229075426,9.47530531,160.87,160.83,6.2177]
[1754229075726,6.2157,160.89,160.84,3.18]
[1754229075922,9.4057,160.89,160.84,3.18]
[1754229076123,6.28530531,160.9,160.85,6.2167]
[1754229076323,15.69070531,160.9,160.82,3.18]
[1754229076724,6.2158,160.89,160.82,3.18]
[1754229077727,6.2158,160.89,160.84,6.2171]
[1754229078026,6.2158,160.89,160.82,3.18]
[1754229078428,15.69040531,160.9,160.85,6.2167]
[1754229078622,15.69040531,160.9,160.86,3.18]
[1754229078926,9.4051,160.9,160.86,3.18]
[1754229079126,9.4051,160.9,160.87,3.18]
[1754229079626,6.2147,160.91,160.87,3.18]
[1754229079826,9.4047,160.91,160.87,3.18]
[1754229081528,3.19,160.91,160.88,3.18]
[1754229081823,6.2144,160.92,160.88,3.18]
[1754229082020,27.94288611,160.94,160.88,3.18]
[1754229082431,21.6575808,160.94,160.88,3.18]
[1754229083128,21.6575808,160.94,160.92,3.18]
[1754229083332,3.19,160.95,160.92,3.18]
[1754229083723,9.4032,160.95,160.92,3.18]
[1754229085426,3.19,160.95,160.92,3.18]
[1754229085833,9.4032,160.95,160.92,3.18]
[1754229086025,3.19,160.95,160.92,3.18]
[1754229086221,3.19,160.94,160.92,3.18]
[1754229086624,9.4037,160.94,160.92,3.18]
[1754229087527,9.4037,160.94,160.89,6.28530531]
[1754229087528,6.2133,160.95,160.91,6.2147]
[1754229087732,9.4033,160.95,160.92,3.18]
[1754229088329,6.2136,160.94,160.92,3.18]
[1754229089427,9.4033,160.95,160.92,3.18]
[1754229089636,3.19,160.95,160.92,3.18]
[1754229090534,6.2136,160.94,160.92,3.18]
[1754229090837,3.19,160.93,160.86,3.18]
[1754229091234,6.2151,160.9,160.87,6.2162]
[1754229091536,6.2151,160.9,160.88,3.18]
[1754229091735,9.4051,160.9,160.88,3.18]
[1754229093735,9.4051,160.9,160.86,6.2166]
[1754229093933,3.19,160.89,160.87,3.18]
[1754229094132,9.4051,160.9,160.87,3.18]
[1754229096338,9.4048,160.91,160.87,3.18]
[1754229097041,6.2144,160.92,160.86,3.18]
[1754229097235,3.19,160.93,160.86,3.18]
[1754229098135,9.4051,160.91,160.88,3.18]
[1754229098542,3.19,160.92,160.88,3.18]
[1754229098741,9.4046,160.92,160.89,3.18]
[1754229099242,3.19,160.91,160.89,3.18]
[1754229099741,9.4048,160.91,160.89,3.18]
[1754229099947,3.19,160.91,160.89,3.18]
[1754229101836,9.4047,160.91,160.9,3.18]
[1754229103648,3.19,160.91,160.9,3.18]
[1754229105443,9.4047,160.91,160.9,3.18]
[1754229106646,3.19,160.91,160.9,3.18]
[1754229107043,6.2144,160.92,160.9,3.18]
[1754229107345,3.24,160.95,160.92,3.25]
[1754229107641,6.28530531,160.96,160.92,3.25]
[1754229107845,3.24,160.94,160.92,3.25]
[1754229108240,6.214,160.93,160.89,6.2155]
[1754229108440,9.454,160.93,160.89,6.2155]
[1754229108946,6.28530531,160.94,160.9,3.25]
[1754229109145,3.24,160.93,160.9,3.25]
[1754229109551,3.24,160.93,160.91,3.25]
[1754229110138,9.4547,160.92,160.91,3.25]
[1754229113545,6.2141,160.93,160.91,3.25]
[1754229113740,9.4541,160.93,160.91,3.25]
[1754229114042,3.24,160.93,160.92,3.25]
[1754229114945,6.28530531,160.94,160.85,6.28530531]
[1754229115147,6.28530531,160.92,160.86,3.25]
[1754229115444,6.2153,160.9,160.86,9.4664]
[1754229115649,9.4553,160.9,160.87,3.25]
[1754229115852,3.24,160.9,160.87,3.25]
[1754229116048,6.2149,160.91,160.87,9.466]
[1754229116247,9.4549,160.91,160.88,3.25]
[1754229116545,9.4549,160.91,160.88,6.2158]
[1754229116749,9.4549,160.91,160.89,3.25]
[1754229116950,6.2149,160.91,160.89,3.25]
[1754229117750,9.4545,160.92,160.89,3.25]
[1754229118255,6.2141,160.93,160.89,6.2154]
[1754229118452,6.2141,160.93,160.9,3.25]
[1754229119049,6.2141,160.93,160.91,3.25]
[1754229119646,6.28530531,160.97,160.91,3.25]
[1754229119856,6.28530531,160.99,160.91,6.28530531]
[1754229120040,135.51864321,161.01,160.87,5.20394715]
[1754229120041,141.80394852,161.01,160.93,6.28530531]
[1754229120242,141.80394852,161.01,160.94,3.25]
[1754229120549,3.24,160.98,160.93,3.25]
[1754229120747,3.24,160.98,160.9,3.25]
[1754229121052,3.24,160.94,160.9,9.465]
[1754229121251,3.24,160.94,160.9,6.215]
[1754229121450,3.24,160.94,160.92,3.25]
[1754229121957,9.4537,160.94,160.92,3.25]
[1754229122253,9.52530531,160.95,160.92,3.25]
[1754229122448,3.24,160.94,160.93,3.25]
[1754229122947,9.4536,160.94,160.93,3.25]
[1754229126559,3.24,160.94,160.9,3.25]
[1754229126857,3.24,160.92,160.9,3.25]
[1754229127056,6.2147,160.91,160.9,3.25]
[1754229127256,9.4547,160.91,160.9,3.25]
[1754229127457,3.24,160.91,160.85,3.25]
[1754229127658,9.52530531,160.91,160.85,3.25]
[1754229127950,6.28530531,160.93,160.85,3.25]
[1754229128154,3.24,160.92,160.85,3.25]
[1754229128351,6.85806897,160.96,160.85,3.25]
[1754229128551,6.85806897,160.97,160.92,6.28530531]
[1754229128749,3.24,160.99,160.93,3.25]
[1754229129756,6.2127,160.97,160.93,6.2137]
[1754229129957,9.4527,160.97,160.94,3.25]
[1754229130664,6.2127,160.97,160.95,3.25]
[1754229131658,9.4527,160.97,160.95,3.25]
[1754229132157,9.4527,160.97,160.96,3.25]
[1754229132660,3.24,160.95,160.9,6.28530531]
[1754229132864,3.24,160.95,160.94,3.25]
[1754229133559,9.4535,160.95,160.94,3.25]
[1754229134757,6.2129,160.96,160.94,3.25]
[1754229135060,9.7129,160.96,160.94,3.25]
[1754229136153,6.2129,160.96,160.94,3.25]
[1754229136354,9.7124,160.97,160.94,3.25]
[1754229136659,3.5,160.97,160.94,3.33]
[1754229136855,6.2125,160.97,160.94,3.33]
[1754229137254,9.7125,160.97,160.94,3.33]
[1754229137455,6.2125,160.97,160.95,3.33]
[1754229138357,9.7125,160.97,160.95,3.33]
[1754229138660,9.7125,160.97,160.96,3.33]
[1754229139255,9.6925,160.97,160.96,3.33]
[1754229141863,3.5,160.97,160.96,3.33]
[1754229142664,9.7124,160.97,160.96,3.33]
[1754229142962,3.5,160.99,160.96,3.33]
[1754229143263,6.2121,160.98,160.96,3.33]
[1754229144560,9.7121,160.98,160.96,3.33]
[1754229145261,113.86,161.0,160.95,6.2131]
[1754229145464,113.86,161.0,160.94,3.33]
[1754229145765,139.01864321,161.01,160.97,6.2122]
[1754229145962,139.01864321,161.01,160.98,3.33]
[1754229146766,135.51864321,161.01,160.98,9.5418]
[1754229147071,135.51864321,161.01,160.99,3.33]
[1754229148666,135.51864321,161.01,161.0,9.5412]
[1754229149064,23.15684338,161.01,161.0,9.5412]
[1754229149870,23.15684338,161.01,161.0,15.82650531]
[1754229150274,23.15684338,161.01,161.0,9.5412]
[1754229150568,19.61684338,161.01,161.0,15.82650531]
[1754229150764,11.29713,161.04,161.03,6.2101]
[1754229150967,11.29713,161.04,161.03,12.49540531]
[1754229151768,3.5,161.1,161.08,6.2079]
[1754229152270,3.5,161.14,161.09,12.49280531]
[1754229152471,3.5,161.14,161.09,6.28530531]
[1754229152870,3.5,161.14,161.1,6.2073]
[1754229153064,3.5,161.14,161.09,6.28530531]
[1754229153872,6.28530531,161.18,161.09,6.28530531]
[1754229153873,3.5,161.15,161.09,6.28530531]
[1754229154564,3.5,161.15,161.07,6.28530531]
[1754229154765,3.5,161.15,161.05,6.28530531]
[1754229155761,3.5,161.13,161.05,6.28530531]
[1754229156768,6.2077,161.1,161.05,6.28530531]
[1754229157067,3.5,161.09,161.05,6.28530531]
[1754229157267,3.5,161.11,161.05,6.28530531]
[1754229158264,3.5,161.13,161.05,6.28530531]
[1754229158566,3.5,161.13,161.03,6.28530531]
[1754229159769,3.5,161.09,161.05,6.28530531]
[1754229160763,3.5,161.08,161.05,6.28530531]
[1754229161573,3.5,161.07,161.05,12.49450531]
[1754229164669,6.2075,161.1,161.05,12.49450531]
[1754229164877,3.26,161.06,161.05,6.28530531]
[1754229166374,3.26,161.05,161.04,6.2096]
[1754229167576,3.26,161.05,161.03,12.49540531]
[1754229167774,3.26,161.04,161.03,12.49540531]
[1754229168572,3.26,161.04,161.01,120.08530531]
[1754229169393,3.26,161.04,160.93,417.18]
[1754229169394,3.26,161.05,160.93,417.18]
[1754229169591,3.26,161.05,160.97,6.28530531]
[1754229169973,3.26,161.05,161.01,6.2107]
[1754229170277,3.26,161.05,160.97,6.28530531]
[1754229170675,6.2097,161.04,160.99,6.2114]
[1754229170881,3.26,161.03,160.99,6.2114]
[1754229171269,3.26,161.03,160.98,6.2119]
[1754229171469,3.26,161.03,160.96,6.28530531]
[1754229172073,3.26,161.03,160.99,6.2114]
[1754229172980,3.26,161.02,160.98,6.28530531]
[1754229173879,3.26,161.07,161.0,6.28530531]
[1754229174080,3.26,161.07,161.02,6.28530531]
[1754229175578,3.26,161.07,161.05,6.209]
[1754229176273,3.26,161.07,161.04,6.2096]
[1754229178488,3.26,161.07,161.05,6.2093]
[1754229178883,3.26,161.07,161.04,6.2096]
[1754229180079,3.26,161.07,161.03,6.21]
[1754229181383,3.26,161.06,160.97,6.28530531]
[1754229181975,6.21,161.04,160.97,6.28530531]
[1754229182180,3.26,161.03,160.97,6.28530531]
[1754229182375,3.26,161.03,160.95,113.92]
[1754229182582,3.26,161.02,160.97,6.2123]
[1754229182784,3.26,161.02,160.96,6.28530531]
[1754229183181,3.26,161.02,160.98,6.2117]
[1754229183379,3.26,161.02,160.96,6.28530531]
[1754229183578,6.2107,161.02,160.97,6.2123]
[1754229183787,3.26,161.01,160.97,6.2123]
[1754229184481,6.2109,161.01,160.96,12.49800531]
[1754229184684,3.26,161.0,160.96,12.49800531]
[1754229184990,3.26,161.0,160.96,6.28530531]
[1754229185183,3.26,161.0,160.97,6.2121]
[1754229185880,3.26,161.0,160.97,19.72020935]
[1754229186389,3.26,161.0,160.98,6.212]
[1754229187187,3.26,161.02,160.98,6.28530531]
[1754229187384,6.28530531,161.04,160.97,13.50810935]
[1754229187590,3.26,161.03,160.97,13.50810935]
[1754229187976,6.211,161.01,160.97,13.50810935]
[1754229188180,3.26,161.0,160.97,13.50810935]
[1754229188876,3.26,161.0,160.97,19.72050935]
[1754229189492,3.26,161.0,160.97,13.50810935]
[1754229190189,3.26,161.0,160.97,19.72020935]
[1754229192896,3.26,161.0,160.97,13.50810935]
[1754229193194,3.26,160.99,160.97,13.50810935]
[1754229194298,6.28530531,161.04,160.97,13.50810935]
[1754229194606,3.33,161.01,160.98,6.2119]
[1754229198106,3.33,161.01,160.97,19.72040935]
[1754229199107,6.2109,161.01,160.97,19.72040935]
[1754229199307,3.33,161.0,160.97,19.72040935]
[1754229200910,3.33,161.0,160.97,13.50810935]
[1754229202211,9.5413,161.0,160.97,13.50810935]
[1754229202413,3.33,160.99,160.97,13.50810935]
[1754229202608,3.33,160.99,160.97,19.72040935]
[1754229203213,3.33,160.99,160.97,13.50810935]
[1754229204913,9.5419,160.99,160.97,13.50810935]
[1754229205112,3.33,160.98,160.97,13.50810935]
[1754229210816,9.542,160.98,160.97,13.50810935]
[1754229217120,3.33,160.97,160.89,6.28530531]
[1754229217319,3.33,160.95,160.89,13.41796123]
[1754229217519,3.33,160.95,160.9,6.215]
[1754229217921,3.33,160.93,160.9,6.215]
[1754229218217,6.2138,160.94,160.9,6.215]
[1754229218419,3.33,160.89,160.87,3.19]
[1754229218719,3.33,160.89,160.88,3.19]
[1754229219230,6.28530531,160.93,160.85,3.19]
[1754229219523,3.33,160.87,160.85,3.19]
[1754229219718,6.28530531,160.93,160.85,3.19]
[1754229219920,3.33,160.88,160.85,3.19]
[1754229220120,3.33,160.87,160.85,3.19]
[1754229220623,3.33,160.88,160.85,3.19]
[1754229221319,3.33,160.87,160.85,3.19]
[1754229222025,6.2156,160.89,160.85,3.19]
[1754229222214,3.33,160.88,160.85,3.19]
[1754229222617,3.33,160.88,160.85,9.407]
[1754229222815,6.2152,160.9,160.86,3.19]
[1754229223128,3.33,160.92,160.86,3.19]
[1754229223827,3.5,160.89,160.86,3.19]
[1754229224428,3.5,160.88,160.86,3.19]
[1754229225028,3.5,160.88,160.86,6.2166]
[1754229225219,3.5,160.88,160.87,3.46]
[1754229226731,3.5,160.9,160.88,3.46]
[1754229227029,3.5,160.91,160.9,3.46]
[1754229227425,3.5,160.91,160.88,13.75254249]
[1754229227426,3.5,160.91,160.88,17.21254249]
[1754229227734,3.5,160.91,160.89,3.46]
[1754229227928,3.5,160.91,160.88,13.75254249]
[1754229229335,3.5,160.89,160.88,13.75254249]
[1754229230932,3.5,160.89,160.88,17.21254249]
[1754229232330,3.5,160.96,160.89,3.46]
[1754229233428,6.28530531,160.95,160.9,3.46]
[1754229233635,3.5,160.9,160.89,3.46]
[1754229234934,3.5,160.92,160.89,3.46]
[1754229235139,3.5,160.91,160.89,3.46]
[1754229236743,9.714,160.93,160.88,19.96844249]
[1754229236941,9.7143,160.92,160.88,19.96844249]
[1754229237237,3.5,160.91,160.89,3.46]
[1754229241341,6.214,160.93,160.88,13.75254249]
[1754229241548,3.5,160.92,160.89,3.46]
[1754229242234,6.28530531,160.96,160.89,6.2155]